[Event "45th FIDE Womens Olympiad 2024"]
[Site "Budapest"]
[Date "2024.09.12"]
[Round "2.228"]
[White "Clement, Ciel Desiree"]
[Black "Natsheh, Wajd"]
[Result "0-1"]
[ECO "B22"]
[WhiteElo "1460"]
[BlackElo "1739"]
[Annotator "NA"]
[PlyCount "58"]
[EventDate "2024.09.05"]
[EventType "team-tourn"]
[EventCountry "HUN"]
[SourceTitle "playchess.com"]
[Source "ChessBase"]
[SourceQuality "1"]
[WhiteTeam "Guyana"]
[BlackTeam "Palestine"]
[WhiteTeamCountry "GUY"]
[BlackTeamCountry "PLE"]
[TimeControl "40/5400+30:1800+30"]

1. e4 c5 2. Nf3 e6 3. c3 d5 4. exd5 exd5 5. d4 Nc6 6. Be3 c4 7. Nbd2 Bd6 8. b3 b5 9. a4 b4 10. cxb4 c3 11. Nb1 Bxb4 12. Qc1 c2+ 13. Nbd2 Bf5 14. Bb5 Nge7 15. Ne5 Rc8 16. Nd3 O-O 17. Ra2 Bxd3 18. Bxd3 Na5 19. Bxc2 Nf5 20. O-O Nxe3 21. fxe3 Qg5 22. Nf3 Qh6 23. Kf2 Rfe8 24. Rd1 Nxb3 25. Qb1 Qxe3+ 26. Kf1 Na5 27. Qxb4 Qe2+ 28. Kg1 Rxc2 29. Re1 Qxg2# 0-1

[Event "45th FIDE Womens Olympiad 2024"]
[Site "Budapest"]
[Date "2024.09.12"]
[Round "2.229"]
[White "Ahmed, Najla"]
[Black "Park, Sunwoo"]
[Result "0-1"]
[ECO "B24"]
[WhiteElo "1539"]
[BlackElo "1877"]
[Annotator "NA"]
[PlyCount "142"]
[EventDate "2024.09.05"]
[EventType "team-tourn"]
[EventCountry "HUN"]
[SourceTitle "playchess.com"]
[Source "ChessBase"]
[SourceQuality "1"]
[WhiteTeam "Bahrain"]
[BlackTeam "South Korea"]
[WhiteTeamCountry "BRN"]
[BlackTeamCountry "KOR"]
[TimeControl "40/5400+30:1800+30"]

1. e4 c5 2. Nc3 Nc6 3. Nge2 g6 4. g3 Bg7 5. Bg2 Nf6 6. d3 a6 7. Be3 d6 8. h3 O-O 9. Qd2 Re8 10. f4 e6 11. g4 Nd7 12. h4 Nd4 13. h5 Qa5 14. hxg6 fxg6 15. f5 Ne5 16. Bxd4 cxd4 17. Nxd4 Nxg4 18. Nb3 Qe5 19. O-O-O exf5 20. exf5 Bxf5 21. Bd5+ Kh8 22. Bxb7 Ra7 23. Bf3 Rae7 24. Bxg4 Bxg4 25. Rdg1 Bh5 26. Kb1 d5 27. d4 Qd6 28. Qg5 Bf3 29. Rh3 Re1+ 30. Rxe1 Rxe1+ 31. Nc1 Bh5 32. Qh4 Rf1 33. Qg5 Bf6 34. Qe3 Kg7 35. a3 h6 36. N3a2 Bg5 37. Qd3 Qf4 38. Qxa6 Rxc1+ 39. Nxc1 Qxc1+ 40. Ka2 Qf4 41. Qb7+ Qf7 42. Qxf7+ Kxf7 43. Rc3 Be2 44. Rh3 h5 45. Rh2 Bd1 46. Kb3 Bf4 47. Rf2 g5 48. Kb4 h4 49. Kc5 Ke6 50. a4 h3 51. Kb6 Be3 52. Rh2 Bxd4+ 53. Kb7 Bg4 54. c3 Be5 55. Rf2 h2 56. Rf1 Bf3 57. a5 h1=Q 58. Rxh1 Bxh1 59. Kc8 d4 60. cxd4 Bxd4 61. b4 Kd6 62. b5 Bc3 63. b6 Bxa5 64. b7 Bxb7+ 65. Kxb7 g4 66. Ka8 g3 67. Kb7 g2 68. Kc8 g1=Q 69. Kb8 Qb6+ 70. Ka8 Qa6+ 71. Kb8 Bc7# 0-1

[Event "45th FIDE Womens Olympiad 2024"]
[Site "Budapest"]
[Date "2024.09.12"]
[Round "2.230"]
[White "Khan, Anastasia"]
[Black "Almusawi, Maram"]
[Result "1-0"]
[ECO "A48"]
[WhiteElo "1859"]
[BlackElo "1510"]
[Annotator "NA"]
[PlyCount "61"]
[EventDate "2024.09.05"]
[EventType "team-tourn"]
[EventCountry "HUN"]
[SourceTitle "playchess.com"]
[Source "ChessBase"]
[SourceQuality "1"]
[WhiteTeam "South Korea"]
[BlackTeam "Bahrain"]
[WhiteTeamCountry "KOR"]
[BlackTeamCountry "BRN"]
[TimeControl "40/5400+30:1800+30"]

1. d4 Nf6 2. Bf4 g6 3. e3 Bg7 4. Nf3 O-O 5. Nbd2 d5 6. c4 c6 7. Bd3 Bg4 8. Qb3 Qb6 9. c5 Qxb3 10. axb3 Nbd7 11. b4 b6 12. h3 Bxf3 13. Nxf3 Rfe8 14. Ba6 e5 15. Bxe5 Nxe5 16. Nxe5 Re6 17. Bb7 Rb8 18. Bxc6 bxc5 19. bxc5 Rxb2 20. O-O Re7 21. Rfb1 Rxb1+ 22. Rxb1 a5 23. Rb8+ Bf8 24. Ra8 Rc7 25. Rxa5 Kg7 26. Ra8 Be7 27. f3 h5 28. g4 hxg4 29. hxg4 Nh7 30. Bxd5 Bf6 31. Nxf7 1-0

[Event "45th FIDE Womens Olympiad 2024"]
[Site "Budapest"]
[Date "2024.09.12"]
[Round "2.231"]
[White "Sharaf, Hawra"]
[Black "Cho, Yeonhee"]
[Result "1-0"]
[ECO "C26"]
[WhiteElo "1595"]
[BlackElo "1696"]
[Annotator "NA"]
[PlyCount "91"]
[EventDate "2024.09.05"]
[EventType "team-tourn"]
[EventCountry "HUN"]
[SourceTitle "playchess.com"]
[Source "ChessBase"]
[SourceQuality "1"]
[WhiteTeam "Bahrain"]
[BlackTeam "South Korea"]
[WhiteTeamCountry "BRN"]
[BlackTeamCountry "KOR"]
[TimeControl "40/5400+30:1800+30"]

1. e4 e5 2. Nc3 Nf6 3. g3 Bc5 4. Bg2 d6 5. Nge2 Nc6 6. O-O a6 7. Kh1 Ng4 8. Kg1 h5 9. h3 h4 10. d4 Nxd4 11. b4 Ba7 12. Be3 Nxe3 13. fxe3 Ne6 14. g4 Bxe3+ 15. Kh1 Ng5 16. Qd3 Ba7 17. Nd5 Bd7 18. Ng1 Be6 19. b5 axb5 20. a3 c6 21. Ne3 Bc5 22. Nf3 Bd7 23. Nf5 Bxf5 24. exf5 Qf6 25. Nxg5 Qxg5 26. f6 gxf6 27. c4 bxc4 28. Qxc4 Ke7 29. Rf5 Qe3 30. Raf1 Qd4 31. Qb3 Ra7 32. Rxf6 d5 33. Rxf7+ Ke8 34. Rxb7 Rh7 35. Rb8+ Kd7 36. Rb7+ Ke6 37. Rb8 Rhf7 38. Rd1 Qa4 39. Bxd5+ cxd5 40. Qxd5+ Kf6 41. Rf1+ Kg6 42. Rg8+ Rg7 43. Rc8 Qd4 44. Qe6+ Kh7 45. Qf5+ Rg6 46. Qh5+ 1-0

[Event "45th FIDE Womens Olympiad 2024"]
[Site "Budapest"]
[Date "2024.09.12"]
[Round "2.232"]
[White "Kim, Sarang"]
[Black "Yaqoob, Wafa"]
[Result "1-0"]
[ECO "B28"]
[WhiteElo "1732"]
[BlackElo "1438"]
[Annotator "NA"]
[PlyCount "105"]
[EventDate "2024.09.05"]
[EventType "team-tourn"]
[EventCountry "HUN"]
[SourceTitle "playchess.com"]
[Source "ChessBase"]
[SourceQuality "1"]
[WhiteTeam "South Korea"]
[BlackTeam "Bahrain"]
[BlackTeamCountry "BRN"]
[TimeControl "40/5400+30:1800+30"]

1. e4 c5 2. Nf3 a6 3. c3 d5 4. exd5 Qxd5 5. d4 Nf6 6. Be2 e6 7. O-O Nc6 8. Na3 cxd4 9. Nc4 dxc3 10. Nb6 Qxd1 11. Rxd1 cxb2 12. Nxa8 bxc1=Q 13. Raxc1 Nd5 14. Ne5 Ba3 15. Rc2 O-O 16. Nc4 Bc5 17. Na5 Ba7 18. Nxc6 bxc6 19. Rb1 c5 20. Bc4 Rd8 21. Rd2 Rd7 22. Bxd5 exd5 23. Re1 Rd8 24. Rxd5 Rf8 25. Rd2 Be6 26. Nc7 Bb6 27. Nxe6 fxe6 28. Rxe6 Rb8 29. Rb2 Rd8 30. g3 Ba5 31. Rb7 Bc3 32. Rxa6 Bd4 33. Rab6 c4 34. Rb4 c3 35. Rb8 Rxb8 36. Rxb8+ Kf7 37. Kf1 Ke6 38. Ke2 Kd5 39. f3 Kc4 40. Rc8+ Kb4 41. Kd3 Bf6 42. Rc4+ Ka3 43. Rxc3+ Bxc3 44. Kxc3 Kxa2 45. Kd4 Kb3 46. Ke5 Kc3 47. h4 Kd3 48. h5 g6 49. f4 Ke3 50. g4 Kf3 51. f5 gxf5 52. gxf5 Kg4 53. f6 1-0

[Event "45th FIDE Womens Olympiad 2024"]
[Site "Budapest"]
[Date "2024.09.12"]
[Round "2.233"]
[White "Viana, Valeria"]
[Black "Ebrahim, Zahabiyah"]
[Result "1-0"]
[ECO "B15"]
[WhiteElo "1882"]
[BlackElo "1475"]
[Annotator "NA"]
[PlyCount "85"]
[EventDate "2024.09.05"]
[EventType "team-tourn"]
[EventCountry "HUN"]
[SourceTitle "playchess.com"]
[Source "ChessBase"]
[SourceQuality "1"]
[WhiteTeam "Honduras"]
[BlackTeam "Tanzania"]
[WhiteTeamCountry "HON"]
[BlackTeamCountry "TAN"]
[TimeControl "40/5400+30:1800+30"]

1. e4 c6 2. d4 d5 3. Nc3 dxe4 4. Nxe4 Nf6 5. Nxf6+ exf6 6. c3 Bd6 7. Bd3 O-O 8. Qc2 Re8+ 9. Ne2 h6 10. Bd2 Nd7 11. O-O-O Nf8 12. Ng3 Be6 13. Kb1 b5 14. Rhe1 a5 15. Nf5 b4 16. Qa4 Qc7 17. h3 Reb8 18. c4 c5 19. Nxd6 Qxd6 20. d5 Bd7 21. Qc2 a4 22. Qc1 Ng6 23. Bxg6 fxg6 24. Bf4 Bf5+ 25. Ka1 Qa6 26. Bxb8 Rxb8 27. g4 Bd7 28. Re7 Qd6 29. Rde1 Rd8 30. Qe3 Kh7 31. f3 f5 32. Qe5 Qxe5 33. R1xe5 f4 34. Rf7 g5 35. Ree7 Be8 36. Rxg7+ Kh8 37. Rh7+ Kg8 38. Rxh6 Kf8 39. Re5 Kf7 40. Rxg5 Bd7 41. Re5 Kg7 42. Rd6 Kf7 43. h4 1-0

[Event "45th FIDE Womens Olympiad 2024"]
[Site "Budapest"]
[Date "2024.09.12"]
[Round "2.234"]
[White "Mahi R. Shah"]
[Black "Torres Hernandez, Leslie Carolin"]
[Result "0-1"]
[ECO "A30"]
[WhiteElo "1602"]
[BlackElo "1891"]
[Annotator "NA"]
[PlyCount "82"]
[EventDate "2024.09.05"]
[EventType "team-tourn"]
[EventCountry "HUN"]
[SourceTitle "playchess.com"]
[Source "ChessBase"]
[SourceQuality "1"]
[WhiteTeam "Tanzania"]
[BlackTeam "Honduras"]
[WhiteTeamCountry "TAN"]
[BlackTeamCountry "HON"]
[TimeControl "40/5400+30:1800+30"]

1. d4 Nf6 2. c4 e6 3. Nf3 b6 4. g3 Bb7 5. Bg2 c5 6. O-O Be7 7. Bf4 O-O 8. Nc3 d5 9. cxd5 Nxd5 10. Nxd5 Bxd5 11. Qd3 cxd4 12. Nxd4 Bxg2 13. Kxg2 Bf6 14. Be3 Qd5+ 15. Kg1 Nd7 16. Qb3 Qb7 17. Nf3 Rac8 18. Rfd1 Nc5 19. Bxc5 Rxc5 20. Rac1 Rxc1 21. Rxc1 Rc8 22. Rd1 g6 23. h4 Qe4 24. Rd2 Rc1+ 25. Kg2 h6 26. Qb5 Qc6 27. Qb3 Kg7 28. Qa3 g5 29. hxg5 hxg5 30. g4 Qe4 31. Kh3 Rh1+ 32. Kg2 Rh4 33. Kf1 Qb1+ 34. Ne1 Rh1+ 35. Kg2 Qxe1 36. Qb4 Qf1+ 37. Kf3 Rh3+ 38. Ke4 Qxf2 39. Qf8+ Kxf8 40. Rd8+ Bxd8 41. e3 Qxe3# 0-1

[Event "45th FIDE Womens Olympiad 2024"]
[Site "Budapest"]
[Date "2024.09.12"]
[Round "2.235"]
[White "Cruz, Bitia"]
[Black "Bertha Samson Mkude"]
[Result "1-0"]
[ECO "C53"]
[WhiteElo "1736"]
[BlackElo "1459"]
[Annotator "NA"]
[PlyCount "83"]
[EventDate "2024.09.05"]
[EventType "team-tourn"]
[EventCountry "HUN"]
[SourceTitle "playchess.com"]
[Source "ChessBase"]
[SourceQuality "1"]
[WhiteTeam "Honduras"]
[BlackTeam "Tanzania"]
[WhiteTeamCountry "HON"]
[BlackTeamCountry "TAN"]
[TimeControl "40/5400+30:1800+30"]

1. e4 e5 2. Nf3 Nc6 3. Bc4 Bc5 4. c3 d6 5. Qb3 Nh6 6. d4 Na5 7. Qa4+ Bd7 8. Qxa5 Bb6 9. Qa3 Qe7 10. Bxh6 gxh6 11. Nbd2 Rg8 12. g3 Qf6 13. O-O-O Bg4 14. Be2 exd4 15. cxd4 Bxd4 16. Qa4+ c6 17. Qxd4 Qxd4 18. Nxd4 Bxe2 19. Nxe2 O-O-O 20. Nc4 Rg6 21. f4 b5 22. Nd2 Kb7 23. Nf3 Re6 24. e5 d5 25. Ned4 Ree8 26. Rhe1 Rf8 27. f5 Rde8 28. f6 a6 29. Nf5 h5 30. Nd6+ Kb6 31. Nxe8 Rxe8 32. Nh4 Re6 33. Nf5 Re8 34. Ne7 a5 35. e6 Rf8 36. exf7 Rxf7 37. Re6 a4 38. Rxc6+ Ka5 39. Rxd5 Kb4 40. a3+ Ka5 41. Rdd6 b4 42. Rc5# 1-0

[Event "45th FIDE Womens Olympiad 2024"]
[Site "Budapest"]
[Date "2024.09.12"]
[Round "2.237"]
[White "Swaminathan, Laia"]
[Black "Ravelomanana, Sabine"]
[Result "0-1"]
[ECO "D63"]
[WhiteElo "1620"]
[BlackElo "1926"]
[Annotator "NA"]
[PlyCount "106"]
[EventDate "2024.09.05"]
[EventType "team-tourn"]
[EventCountry "HUN"]
[SourceTitle "playchess.com"]
[Source "ChessBase"]
[SourceQuality "1"]
[WhiteTeam "Cayman Islands"]
[BlackTeam "Madagascar"]
[WhiteTeamCountry "CAY"]
[BlackTeamCountry "MAD"]
[TimeControl "40/5400+30:1800+30"]

1. d4 d5 2. c4 e6 3. Nc3 Nf6 4. Bg5 Be7 5. e3 O-O 6. Nf3 c6 7. Rc1 Nbd7 8. a3 Re8 9. Be2 dxc4 10. Bxc4 b5 11. Bd3 a6 12. O-O c5 13. Qc2 c4 14. Be4 Nxe4 15. Bxe7 Qxe7 16. Nxe4 Bb7 17. Ned2 f5 18. Rfe1 g5 19. h3 Qg7 20. Qd1 g4 21. hxg4 Qxg4 22. Qe2 Kh8 23. e4 Rg8 24. g3 f4 25. Nh2 Qh3 26. g4 Nf6 27. f3 h5 28. Qg2 hxg4 29. fxg4 Qh6 30. Kf2 Qh4+ 31. Kf3 Qg5 32. Kf2 Rg7 33. Ndf3 Nxg4+ 34. Nxg4 Qxg4 35. Qxg4 Rxg4 36. Ne5 Rg3 37. Rh1+ Kg7 38. Rhg1 Bxe4 39. Rxg3+ fxg3+ 40. Ke3 Bd5 41. Rf1 g2 42. Rf7+ Kg8 43. Kf2 a5 44. Rf4 b4 45. Rg4+ Kh7 46. Rh4+ Kg7 47. Rg4+ Kh6 48. Rh4+ Kg5 49. Rg4+ Kh5 50. Rg3 Rf8+ 51. Ke3 Rf1 52. Rh3+ Kg5 53. Rg3+ Kh4 0-1

[Event "45th FIDE Womens Olympiad 2024"]
[Site "Budapest"]
[Date "2024.09.12"]
[Round "2.239"]
[White "Majid, Zara"]
[Black "Randriatsiferana, Dimbiharentsoa Chris"]
[Result "0-1"]
[ECO "B07"]
[WhiteElo "1411"]
[BlackElo "1736"]
[Annotator "NA"]
[PlyCount "92"]
[EventDate "2024.09.05"]
[EventType "team-tourn"]
[EventCountry "HUN"]
[SourceTitle "playchess.com"]
[Source "ChessBase"]
[SourceQuality "1"]
[WhiteTeam "Cayman Islands"]
[BlackTeam "Madagascar"]
[WhiteTeamCountry "CAY"]
[BlackTeamCountry "MAD"]
[TimeControl "40/5400+30:1800+30"]

1. d4 Nf6 2. Bf4 g6 3. Nc3 Bg7 4. e4 d6 5. Qd2 h6 6. h4 Nbd7 7. O-O-O Nb6 8. f3 Bd7 9. g4 e5 10. dxe5 dxe5 11. Bxe5 Nxe4 12. Qe3 Bxe5 13. Qxe4 Qe7 14. Qxb7 Bxc3 15. bxc3 Qe3+ 16. Kb2 Na4+ 17. Ka3 Qxc3+ 18. Qb3 Qc5+ 19. Qb4 Qxb4+ 20. Kxb4 Rb8+ 21. Ka3 Nc3 22. Re1+ Kf8 23. Bc4 Nb1+ 24. Rxb1 Rxb1 25. Bb3 Kg7 26. Kb4 Re8 27. Ka5 Ree1 28. Ka6 Rxg1 29. Rxg1 Rxg1 30. Kxa7 Ra1 31. Kb7 Be6 32. Kxc7 Bxb3 33. axb3 Rc1 34. b4 Rxc2+ 35. Kb6 Kf8 36. b5 Ke7 37. Ka6 Ra2+ 38. Kb7 Kd7 39. b6 Ra3 40. f4 Ra4 41. Kb8 Kc6 42. b7 Rb4 43. Ka8 Rxb7 44. g5 hxg5 45. f5 Kc7 46. fxg6 Rb2 0-1

[Event "45th FIDE Womens Olympiad 2024"]
[Site "Budapest"]
[Date "2024.09.12"]
[Round "2.240"]
[White "Tsinjoviniavo, Aina Mahasambatra"]
[Black "Patil, Anvita Niranjan"]
[Result "1-0"]
[ECO "C45"]
[WhiteElo "1662"]
[BlackElo "1589"]
[Annotator "NA"]
[PlyCount "185"]
[EventDate "2024.09.05"]
[EventType "team-tourn"]
[EventCountry "HUN"]
[SourceTitle "playchess.com"]
[Source "ChessBase"]
[SourceQuality "1"]
[WhiteTeam "Madagascar"]
[BlackTeam "Cayman Islands"]
[WhiteTeamCountry "MAD"]
[BlackTeamCountry "CAY"]
[TimeControl "40/5400+30:1800+30"]

1. e4 e5 2. Nf3 Nc6 3. d4 exd4 4. Nxd4 Bc5 5. Nf5 Qf6 6. Nc3 Nge7 7. Be3 Bb4 8. Nxe7 Qxe7 9. Qd3 d6 10. O-O-O Be6 11. a3 Ba5 12. f4 O-O-O 13. b4 Bb6 14. Bxb6 axb6 15. f5 Bd7 16. Qc4 Ne5 17. Qb3 f6 18. Nd5 Qf7 19. Bc4 Qe8 20. b5 Nxc4 21. Qxc4 c6 22. Nxb6+ Kb8 23. Nxd7+ Qxd7 24. b6 c5 25. a4 Rhe8 26. a5 Qc6 27. Rhe1 Rd7 28. Rd5 Red8 29. Re3 Rh8 30. Rb3 Re8 31. Ra3 Rde7 32. a6 Rxe4 33. a7+ Ka8 34. Qa2 Re1+ 35. Rd1 Qe4 36. Rad3 Qf4+ 37. Kb2 Rxd1 38. Rxd1 Qxh2 39. Qf7 Qe5+ 40. Kb3 Qe3+ 41. Rd3 c4+ 42. Qxc4 Qxb6+ 43. Ka2 Kxa7 44. Qa4+ Qa6 45. Qxa6+ bxa6 46. Rxd6 Rb8 47. Ka3 Rb7 48. c4 Rb6 49. Re6 g6 50. c5 Rb5 51. Rxf6 Rxc5 52. Rf7+ Kb6 53. f6 h6 54. Rg7 Rg5 55. f7 Rg3+ 56. Kb4 Rg4+ 57. Kc3 Rf4 58. g3 Rf6 59. Kd4 g5 60. Rg6 Rxg6 61. f8=Q Rc6 62. Qd8+ Kb5 63. Qd5+ Kb6 64. Qb3+ Kc7 65. Ke5 a5 66. Qb5 Rb6 67. Qxa5 Kc6 68. Qd5+ Kc7 69. Kf5 Rd6 70. Qe5 Kc6 71. Kg4 Rd5 72. Qe4 Kc5 73. Qe7+ Kc4 74. Kh5 Rd4 75. Kxh6 g4 76. Kg5 Rd5+ 77. Kxg4 Rd4+ 78. Kh5 Rd5+ 79. Kh6 Rd3 80. g4 Rh3+ 81. Kg7 Rg3 82. g5 Rg4 83. Qe6+ Kd4 84. Qxg4+ Ke5 85. Kf7 Kd6 86. g6 Ke5 87. g7 Kd6 88. g8=Q Kd5 89. Q8g5+ Kd6 90. Qe6+ Kc7 91. Qge7+ Kb8 92. Qb6+ Ka8 93. Qeb7# 1-0

[Event "45th FIDE Womens Olympiad 2024"]
[Site "Budapest"]
[Date "2024.09.12"]
[Round "2.241"]
[White "Jop A., Laura Elizabeth"]
[Black "Yavo Tchetche, Marie"]
[Result "0-1"]
[ECO "E94"]
[WhiteElo "1686"]
[BlackElo "1686"]
[Annotator "NA"]
[PlyCount "134"]
[EventDate "2024.09.05"]
[EventType "team-tourn"]
[EventCountry "HUN"]
[SourceTitle "playchess.com"]
[Source "ChessBase"]
[SourceQuality "1"]
[WhiteTeam "Guatemala"]
[BlackTeam "Cote d/^Ivoire"]
[WhiteTeamCountry "GUA"]
[TimeControl "40/5400+30:1800+30"]

1. c4 Nf6 2. d4 g6 3. Nc3 Bg7 4. e4 d6 5. Nf3 O-O 6. Be2 Nbd7 7. O-O e5 8. Bg5 c6 9. Qd2 Re8 10. Rad1 Qc7 11. dxe5 dxe5 12. b4 h6 13. Bxh6 Ng4 14. Bxg7 Kxg7 15. h3 Ngf6 16. c5 Rh8 17. Ng5 Qd8 18. Bc4 Rf8 19. f4 exf4 20. Rxf4 Qe7 21. Qd4 Qe5 22. Qxe5 Nxe5 23. Bb3 Nh5 24. Rf2 f6 25. Nf3 Nf4 26. Nd4 g5 27. Nde2 Be6 28. Nxf4 Bxb3 29. axb3 gxf4 30. Rxf4 Rad8 31. Rxd8 Rxd8 32. b5 Rd3 33. bxc6 Rxc3 34. Rf2 Nxc6 35. Rd2 Ne5 36. b4 Rc4 37. b5 Rxe4 38. Ra2 Rb4 39. c6 Rxb5 40. c7 Rc5 41. Rxa7 Rxc7 42. Kh2 Kg6 43. Ra8 Kf5 44. Rb8 Nc6 45. Rf8 b5 46. g4+ Ke6 47. Re8+ Re7 48. Rc8 Kd5 49. Rf8 Ke5 50. Rc8 Re6 51. Rc7 Kf4 52. Rd7 b4 53. Rd5 b3 54. Rf5+ Ke4 55. Rb5 Nd4 56. Rb4 Kd3 57. Kg3 Kc3 58. Rb8 b2 59. Kf4 Kc2 60. Rc8+ Rc6 61. Rxc6+ Nxc6 62. Kf5 b1=Q 63. Kxf6 Qf1+ 64. Kg7 Qxh3 65. g5 Qf5 66. g6 Ne7 67. Kh8 Qf6+ 0-1

[Event "45th FIDE Womens Olympiad 2024"]
[Site "Budapest"]
[Date "2024.09.12"]
[Round "2.242"]
[White "Kouassi Edichy Berenice"]
[Black "Lopez L., Dairyn D."]
[Result "0-1"]
[ECO "A81"]
[WhiteElo "1528"]
[BlackElo "1740"]
[Annotator "NA"]
[PlyCount "74"]
[EventDate "2024.09.05"]
[EventType "team-tourn"]
[EventCountry "HUN"]
[SourceTitle "playchess.com"]
[Source "ChessBase"]
[SourceQuality "1"]
[WhiteTeam "Cote d/^Ivoire"]
[BlackTeam "Guatemala"]
[BlackTeamCountry "GUA"]
[TimeControl "40/5400+30:1800+30"]

1. d4 g6 2. Nf3 Bg7 3. g3 d6 4. Bg2 f5 5. Be3 Nf6 6. Nbd2 c6 7. c4 Na6 8. O-O O-O 9. Qb3 Kh8 10. Ne1 Qe8 11. Nd3 h6 12. Nf3 g5 13. Rac1 Nc7 14. Bd2 Ne4 15. Bc3 f4 16. d5 Nxc3 17. bxc3 e5 18. dxc6 bxc6 19. Nd2 Bf5 20. Qb7 Qe7 21. Qxc6 Rab8 22. Rb1 Rfc8 23. Rb7 Qd8 24. Rxa7 Nb5 25. Qa6 Nxa7 26. Qxa7 Rc7 27. Qa3 Qe7 28. Nb3 e4 29. Nb4 Rxc4 30. Rd1 Rxc3 31. Nd5 Qe5 32. Nxc3 Qxc3 33. Qxd6 Rf8 34. g4 Bh7 35. Rc1 Qb2 36. Qd2 Qf6 37. Qd4 Qxd4 0-1

[Event "45th FIDE Womens Olympiad 2024"]
[Site "Budapest"]
[Date "2024.09.12"]
[Round "2.243"]
[White "Raymundo, Deycy Daniela"]
[Black "Gba, Zotta Marcelle Auror"]
[Result "1-0"]
[ECO "C66"]
[WhiteElo "1728"]
[BlackElo "1427"]
[Annotator "NA"]
[PlyCount "40"]
[EventDate "2024.09.05"]
[EventType "team-tourn"]
[EventCountry "HUN"]
[SourceTitle "playchess.com"]
[Source "ChessBase"]
[SourceQuality "1"]
[WhiteTeam "Guatemala"]
[BlackTeam "Cote d/^Ivoire"]
[WhiteTeamCountry "GUA"]
[TimeControl "40/5400+30:1800+30"]

1. e4 e5 2. Nf3 Nc6 3. Nc3 Nf6 4. d4 exd4 5. Nxd4 d6 6. Bb5 Bd7 7. O-O a6 8. Ba4 b5 9. Bb3 b4 10. Nd5 Nxe4 11. Re1 Nxd4 12. Qxd4 c6 13. Qxe4+ Be6 14. Nf4 d5 15. Nxe6 fxe6 16. Qxe6+ Be7 17. Bg5 Ra7 18. Qxc6+ Rd7 19. Rxe7+ Kf8 20. Rxd7 Ke8 1-0

[Event "45th FIDE Womens Olympiad 2024"]
[Site "Budapest"]
[Date "2024.09.12"]
[Round "2.245"]
[White "Magne Kouokam Sylviane"]
[Black "Chuemsakul, Sarocha"]
[Result "0-1"]
[ECO "D32"]
[WhiteElo "1587"]
[BlackElo "1906"]
[Annotator "NA"]
[PlyCount "108"]
[EventDate "2024.09.05"]
[EventType "team-tourn"]
[EventCountry "HUN"]
[SourceTitle "playchess.com"]
[Source "ChessBase"]
[SourceQuality "1"]
[WhiteTeam "Cameroon"]
[BlackTeam "Thailand"]
[WhiteTeamCountry "CAM"]
[BlackTeamCountry "THA"]
[TimeControl "40/5400+30:1800+30"]

1. d4 d5 2. c4 e6 3. Nf3 Nf6 4. Nc3 c5 5. cxd5 exd5 6. Bf4 Be7 7. e3 c4 8. a4 a6 9. Be2 Qb6 10. Qc1 Nc6 11. O-O O-O 12. Ne5 Na5 13. Ra2 Bf5 14. Bf3 Rfd8 15. Bg5 Nb3 16. Qe1 Be6 17. Qd1 h6 18. Bxf6 Bxf6 19. Ng4 Be7 20. Ne5 Rab8 21. Bg4 Bf6 22. Bxe6 Qxe6 23. f4 b5 24. a5 Re8 25. e4 dxe4 26. f5 Qc8 27. Nxe4 Bxe5 28. dxe5 Rxe5 29. Nd6 Qc5+ 30. Kh1 Rd5 31. Qg4 Qxd6 32. f6 g6 33. Re1 Qxf6 34. Kg1 Rbd8 35. h3 Rg5 36. Qe2 Rd2 37. Qe8+ Kg7 38. Re2 Rxe2 39. Qxe2 Nc1 40. Qc2 Nxa2 41. Qd2 c3 42. bxc3 Nxc3 43. Qe3 Rf5 44. Kh2 Qe5+ 45. Qg3 Qxg3+ 46. Kxg3 b4 47. Kh4 b3 48. g4 b2 49. gxf5 b1=Q 50. fxg6 Qe1+ 51. Kg4 Kxg6 52. h4 f5+ 53. Kh3 Ne4 54. h5+ Kg5 0-1

[Event "45th FIDE Womens Olympiad 2024"]
[Site "Budapest"]
[Date "2024.09.12"]
[Round "2.246"]
[White "Prommuang, Araya"]
[Black "Danwe Maissiri Carole"]
[Result "1-0"]
[ECO "C80"]
[WhiteElo "1753"]
[BlackElo "1456"]
[Annotator "NA"]
[PlyCount "53"]
[EventDate "2024.09.05"]
[EventType "team-tourn"]
[EventCountry "HUN"]
[SourceTitle "playchess.com"]
[Source "ChessBase"]
[SourceQuality "1"]
[WhiteTeam "Thailand"]
[BlackTeam "Cameroon"]
[WhiteTeamCountry "THA"]
[BlackTeamCountry "CAM"]
[TimeControl "40/5400+30:1800+30"]

1. e4 e5 2. Nf3 Nc6 3. Bb5 Nf6 4. O-O a6 5. Ba4 Be7 6. c3 Nxe4 7. Re1 Nc5 8. Bxc6 dxc6 9. Nxe5 O-O 10. d4 Ne6 11. Be3 Bd7 12. Nd2 f5 13. Ndf3 Ng5 14. Bxg5 Bxg5 15. Qb3+ Kh8 16. Nxg5 Qxg5 17. Nf7+ Rxf7 18. Qxf7 f4 19. Qxd7 Qg6 20. Re6 Qh5 21. Rae1 h6 22. Re8+ Rxe8 23. Qxe8+ Qxe8 24. Rxe8+ Kh7 25. Rf8 g5 26. Rf7+ Kg6 27. Rxc7 1-0

[Event "45th FIDE Womens Olympiad 2024"]
[Site "Budapest"]
[Date "2024.09.12"]
[Round "2.247"]
[White "Tchouateu Tankeu Stephanie"]
[Black "Mekarapiruk, Nathasha"]
[Result "0-1"]
[ECO "D45"]
[WhiteElo "1565"]
[BlackElo "1728"]
[Annotator "NA"]
[PlyCount "110"]
[EventDate "2024.09.05"]
[EventType "team-tourn"]
[EventCountry "HUN"]
[SourceTitle "playchess.com"]
[Source "ChessBase"]
[SourceQuality "1"]
[WhiteTeam "Cameroon"]
[BlackTeam "Thailand"]
[WhiteTeamCountry "CAM"]
[BlackTeamCountry "THA"]
[TimeControl "40/5400+30:1800+30"]

1. d4 d5 2. c4 e6 3. Nf3 Nf6 4. Nc3 Be7 5. cxd5 exd5 6. e3 c6 7. Be2 Bf5 8. Qb3 Qb6 9. Qxb6 axb6 10. a3 b5 11. Na2 b4 12. axb4 Bxb4+ 13. Bd2 Bd6 14. O-O Nbd7 15. Bb4 Ke7 16. Bxd6+ Kxd6 17. Rfc1 h6 18. Ne1 Ra7 19. Bd3 Bxd3 20. Nxd3 Rha8 21. Ndb4 Nb8 22. Rc3 b6 23. Ra3 Rxa3 24. bxa3 Ra6 25. a4 Rxa4 26. Nc2 Ra3 27. Nab4 Rxa1+ 28. Nxa1 c5 29. dxc5+ Kxc5 30. Nac2 Nc6 31. Nxc6 Kxc6 32. Kf1 Kc5 33. Ke2 Kc4 34. f3 b5 35. Kd1 b4 36. Kc1 b3 37. Nd4 Kd3 38. Nxb3 Kxe3 39. Nd2 Kf2 40. g4 Nd7 41. Kc2 Ne5 42. Kc3 Nxf3 43. Nxf3 Kxf3 44. Kd4 Kxg4 45. Kxd5 Kh3 46. Kd6 Kxh2 47. Ke7 f5 48. Kf7 f4 49. Kxg7 f3 50. Kxh6 f2 51. Kg5 f1=R 52. Kg4 Kg2 53. Kg5 Kg3 54. Kh5 Kf4 55. Kh4 Rh1# 0-1

[Event "45th FIDE Womens Olympiad 2024"]
[Site "Budapest"]
[Date "2024.09.12"]
[Round "2.249"]
[White "Miladi, Amen"]
[Black "Nihaya, Ahmed"]
[Result "1-0"]
[ECO "C53"]
[WhiteElo "1851"]
[BlackElo "1589"]
[Annotator "NA"]
[PlyCount "69"]
[EventDate "2024.09.05"]
[EventType "team-tourn"]
[EventCountry "HUN"]
[SourceTitle "playchess.com"]
[Source "ChessBase"]
[SourceQuality "1"]
[WhiteTeam "Tunisia"]
[BlackTeam "Maldives"]
[WhiteTeamCountry "TUN"]
[BlackTeamCountry "MDV"]
[TimeControl "40/5400+30:1800+30"]

1. e4 e5 2. Nf3 Nc6 3. Bc4 Bc5 4. c3 Qe7 5. O-O Nf6 6. d4 Bb6 7. Re1 h6 8. a4 a5 9. Na3 d6 10. Bb5 Bd7 11. Nc4 Ba7 12. Ne3 Nb8 13. Nf5 Qf8 14. dxe5 Ng4 15. Be3 Bxe3 16. Nxe3 Nxe5 17. Nxe5 Bxb5 18. axb5 dxe5 19. Qd5 Nd7 20. Qxb7 Rb8 21. Qxc7 Qc5 22. Qxc5 Nxc5 23. Nc4 f6 24. Rxa5 O-O 25. b4 Ne6 26. Nd6 Rfd8 27. Nf5 Rd7 28. c4 Nf4 29. g3 Nd3 30. Rb1 h5 31. c5 g6 32. Nd6 Rbd8 33. Ra3 Rxd6 34. cxd6 Rxd6 35. Rd1 1-0